bitfinex-derivatives/quotes_ETHF0:USTF0_20250528
["timestamp","ask_amount","ask_price","bid_price","bid_amount"]
[1748395279869,2.004,2644.8,2644.7,3.699]
[1748395280172,2.004,2644.8,2644.7,4.45485]
[1748395281578,3.21346861,2645.0,2644.9,0.75579]
[1748395281878,3.2078,2645.6,2645.5,0.75562]
[1748395282063,3.2078,2645.6,2645.5,4.45362]
[1748395282270,3.2078,2645.9,2645.8,0.75553]
[1748395283167,4.5119,2645.9,2645.8,0.75553]
[1748395284162,4.5119,2645.9,2645.7,1.3163]
[1748395284360,4.5119,2645.9,2645.8,0.75553]
[1748395286069,3.2078,2645.9,2645.8,0.75553]
[1748395286275,0.00566861,2646.1,2646.0,0.75548]
[1748395286569,0.00566861,2646.1,2646.0,4.45348]
[1748395286964,0.00566861,2646.1,2646.0,5.74668]
[1748395293071,3.77439,2648.2,2646.0,9.9912]
[1748395293272,1.972,2647.2,2647.1,0.75516]
[1748395293466,1.972,2647.2,2647.1,7.65896]
[1748395293978,0.75498,2647.8,2647.6,0.755]
[1748395294275,2.72699,2647.7,2647.6,3.696]
[1748395295672,2.72699,2647.7,2647.6,4.45102]
[1748395295873,2.72699,2647.7,2647.6,3.696]
[1748395296472,1.972,2647.7,2647.6,4.45102]
[1748395298171,0.75505,2647.5,2647.4,0.00566861]
[1748395298372,0.75505,2647.5,2647.4,3.70166861]
[1748395298577,1.972,2647.7,2647.5,0.75504]
[1748395298777,0.75502,2647.6,2647.5,0.75504]
[1748395298976,1.3484,2647.6,2647.5,0.75504]
[1748395299778,1.3484,2647.6,2647.5,2.09594]
[1748395300582,2.10342,2647.6,2647.5,2.09594]
[1748395301081,1.3484,2647.6,2647.5,2.09594]
[1748395301783,2.10342,2647.6,2647.5,2.09594]
[1748395301983,1.3484,2647.6,2647.5,2.09594]
[1748395303281,0.65676861,2648.0,2647.9,0.75493]
[1748395303482,1.41167861,2648.0,2647.9,4.45293]
[1748395304385,0.65676861,2648.0,2647.9,4.45293]
[1748395304785,0.00566861,2648.0,2647.9,5.69453]
[1748395304982,8.61e-06,2648.0,2647.9,10.69453]
[1748395305188,8.61e-06,2648.0,2647.9,11.0669156]
[1748395305388,1.2542,2648.7,2648.6,0.75473]
[1748395305579,1.2542,2648.7,2648.6,24.99253]
[1748395307491,0.00566861,2648.9,2648.8,0.75468]
[1748395307992,1.30896861,2648.9,2648.8,0.75468]
[1748395310693,2.06361861,2648.9,2648.8,3.697]
[1748395310895,3.42754314,2648.9,2648.8,3.697]
[1748395311196,10.88069314,2648.9,2648.4,1.3311]
[1748395311386,0.75473,2648.6,2648.5,3.697]
[1748395311685,2.11865453,2648.6,2648.5,3.697]
[1748395311891,2.11865453,2648.6,2648.5,4.45176]
[1748395312193,1.36392453,2648.6,2648.5,4.45176]
[1748395312396,2.69672453,2648.6,2648.5,4.45176]
[1748395312986,3.45146453,2648.6,2648.5,4.45176]
[1748395314096,2.69672453,2648.6,2648.5,4.45176]
[1748395314596,3.45146453,2648.6,2648.5,4.45176]
[1748395315394,3.45146453,2648.6,2648.3,4.5389]
[1748395315395,0.75479,2648.4,2648.3,21.28161]
[1748395315597,2.11871453,2648.4,2648.3,24.97761]
[1748395315895,2.11874453,2648.4,2648.2,3.696]
[1748395316204,2.1205576,2648.3,2648.2,4.45083]
[1748395316488,3.4663576,2648.3,2648.2,4.45083]
[1748395318591,2.7115376,2648.3,2648.2,4.45083]
[1748395318796,3.4663576,2648.3,2648.2,4.45083]
[1748395319496,2.7115376,2648.3,2648.2,4.45083]
[1748395319693,3.4663576,2648.3,2648.2,4.45083]
[1748395321190,3.4663576,2648.3,2648.2,3.696]
[1748395322086,1.3657376,2648.3,2648.2,4.45085]
[1748395322491,1.3657376,2648.3,2648.2,5.74715]
[1748395322900,1.3657376,2648.3,2648.1,3.2078]
[1748395323094,3.38714123,2648.2,2648.1,0.75487]
[1748395323398,4.04164123,2648.2,2648.1,4.45087]
[1748395323583,4.04164123,2648.2,2648.1,4.45088]
[1748395323787,0.75491,2648.0,2647.9,1.38121]
[1748395323988,2.12587123,2648.0,2647.9,5.07723]
[1748395324196,2.12587123,2648.0,2647.9,3.696]
[1748395324395,0.75496,2647.8,2647.7,6.9038]
[1748395324703,2.12592123,2647.8,2647.7,6.9038]
[1748395324889,2.12592123,2647.8,2647.7,7.65879]
[1748395325086,2.12592123,2647.8,2647.7,6.9038]
[1748395325483,2.3411194,2647.8,2647.7,3.2078]
[1748395325690,0.75519,2647.0,2646.9,3.696]
[1748395325889,2.12615123,2647.0,2646.9,3.696]
[1748395326096,43.14136601,2647.0,2646.9,3.696]
[1748395326391,44.48816601,2647.0,2646.9,3.696]
[1748395326790,44.27295123,2647.0,2646.9,3.696]
[1748395327100,43.11712179,2647.0,2646.9,3.696]
[1748395327293,44.48860694,2647.0,2646.9,3.696]
[1748395327602,44.48848565,2647.0,2646.9,3.696]
[1748395327793,44.48848245,2647.0,2646.9,3.696]
[1748395328200,44.48848164,2647.0,2646.9,3.696]
[1748395328492,44.48849932,2647.0,2646.9,3.696]
[1748395328684,44.48850224,2647.0,2646.9,3.696]
[1748395329190,44.27346703,2647.0,2646.9,3.696]
[1748395330294,44.48827668,2647.0,2646.9,3.696]
[1748395330490,44.27346703,2647.0,2646.9,3.696]
[1748395331094,44.27346703,2647.0,2646.7,0.00566861]
[1748395331095,0.75525,2646.8,2646.7,0.00566861]
[1748395331389,5.33093176,2646.8,2646.7,0.00566861]
[1748395331791,5.54549128,2646.8,2646.7,0.00566861]
[1748395332195,5.33093176,2646.8,2646.7,0.00566861]
[1748395332589,46.13093176,2646.8,2646.7,0.00566861]
[1748395332797,51.13093176,2646.8,2646.7,0.00566861]
[1748395333993,51.34522943,2646.8,2646.7,0.00566861]
[1748395334296,51.13093176,2646.8,2646.7,0.00566861]
[1748395335496,44.76305,2646.8,2646.7,0.00566861]
[1748395335695,46.12818568,2646.8,2646.7,0.00566861]
[1748395337098,0.75548,2646.0,2645.9,4.4362]
[1748395337406,0.75552,2645.9,2645.8,0.7555]
[1748395337600,2.10732,2645.9,2645.8,0.7555]
[1748395338293,0.75556,2645.7,2645.6,0.76123861]
[1748395339099,3.96335,2645.8,2645.7,0.75556]
[1748395339304,3.96335,2645.8,2645.7,2.00166]
[1748395340005,3.2078,2645.8,2645.7,2.00166]
[1748395342403,0.7554,2646.3,2646.2,0.75542]
[1748395342599,3.96319,2646.4,2646.3,0.75539]
[1748395343702,3.2078,2646.4,2646.3,0.75539]
[1748395344003,0.75524,2646.9,2646.8,0.75523]
[1748395344306,0.75522,2646.9,2646.8,1.3421]
[1748395344710,1.99602,2646.9,2646.8,1.3421]
[1748395346407,1.99602,2646.9,2646.8,2.09735]
[1748395346707,1.99602,2646.9,2646.8,1.3421]
[1748395349309,0.75525,2646.8,2646.7,0.07339423]
[1748395349508,2.03915,2646.8,2646.7,0.07339423]
[1748395349809,2.03915,2646.8,2646.7,0.82867423]
[1748395351605,2.03915,2646.8,2646.7,0.07339423]
[1748395351805,2.254238,2646.8,2646.7,0.07339423]
[1748395352104,2.2542388,2646.8,2646.7,0.07339423]
[1748395352303,3.2078,2648.6,2646.9,3.2078]
[1748395352512,0.75488,2648.1,2647.8,3.2078]
[1748395352710,0.75488,2648.1,2648.0,0.75489]
[1748395353203,0.75488,2648.1,2648.0,1.2717]
[1748395354013,1.99468,2648.1,2648.0,1.2717]
[1748395360716,1.99468,2648.1,2648.0,2.0266]
[1748395361011,0.75488,2648.1,2648.0,2.0266]
[1748395361212,0.00566861,2648.3,2648.2,0.75485]
[1748395361423,0.00566861,2648.3,2648.2,3.96265]
[1748395361715,0.76048861,2648.3,2648.2,5.22485]
[1748395363413,0.76048861,2648.3,2648.2,4.47]
[1748395363614,0.75491,2648.0,2647.9,7.0088]
[1748395364318,0.75491,2648.0,2647.9,7.76373]
[1748395364613,0.75491,2648.0,2647.9,9.05933]
[1748395367018,0.76051861,2648.3,2648.2,0.75485]
[1748395368422,0.75485,2648.2,2648.1,2.11665]
[1748395370814,0.75488,2648.1,2648.0,3.2078]
[1748395371017,0.75491,2648.0,2647.9,0.07339423]
[1748395371216,2.10621,2648.0,2647.9,0.07339423]
[1748395373124,2.10621,2648.0,2647.8,1e-08]
[1748395373125,0.75493,2647.9,2647.8,1e-08]
[1748395373337,4.34658823,2647.9,2647.8,1e-08]
[1748395373624,50.14658823,2647.9,2647.8,1e-08]
[1748395373819,48.78454904,2647.9,2647.8,1e-08]
[1748395374015,50.14638007,2647.9,2647.8,1e-08]
[1748395374516,50.14650632,2647.9,2647.8,1e-08]
[1748395375420,49.93926103,2647.9,2647.8,1e-08]
[1748395375613,50.1465752,2647.9,2647.8,1e-08]
[1748395376616,50.14671598,2647.9,2647.8,1e-08]
[1748395377419,45.14672216,2647.9,2647.8,1e-08]
[1748395377623,45.14680132,2647.9,2647.8,1e-08]
[1748395378020,45.14680158,2647.9,2647.8,1e-08]
[1748395378222,43.78497055,2647.9,2647.8,1e-08]
[1748395378422,45.14930335,2647.9,2647.8,1e-08]
[1748395378623,45.14939338,2647.9,2647.8,1e-08]
[1748395378825,45.14939396,2647.9,2647.8,1e-08]
[1748395379326,45.14939291,2647.9,2647.8,1e-08]
[1748395380824,45.14961782,2647.9,2647.8,1e-08]
[1748395381529,45.1496113,2647.9,2647.8,1e-08]
[1748395383426,45.14972838,2647.9,2647.8,1e-08]
[1748395384532,45.14967803,2647.9,2647.8,1e-08]
[1748395384735,45.14966132,2647.9,2647.8,0.07339424]
[1748395385224,45.14965942,2647.9,2647.8,0.07339424]
[1748395385417,43.78532662,2647.9,2647.8,0.07339424]
[1748395385622,45.15183168,2647.9,2647.8,1e-08]
[1748395385824,45.15183163,2647.9,2647.8,1e-08]
[1748395386233,44.94394764,2647.9,2647.8,1e-08]
[1748395386531,45.15183111,2647.9,2647.8,1e-08]
[1748395387030,45.15182736,2647.9,2647.8,1e-08]
[1748395387231,44.94394764,2647.9,2647.8,1e-08]
[1748395387432,45.15181742,2647.9,2647.8,1e-08]
[1748395388031,44.94394764,2647.9,2647.8,1e-08]
[1748395388426,45.15181722,2647.9,2647.8,1e-08]
[1748395388633,45.15181038,2647.9,2647.8,0.07339424]
[1748395389430,45.15182241,2647.9,2647.8,0.07339424]
[1748395389635,45.15182241,2647.9,2647.8,1e-08]
[1748395389830,45.15170471,2647.9,2647.8,1e-08]
[1748395390033,45.15170657,2647.9,2647.8,1e-08]
[1748395390233,45.15170601,2647.9,2647.8,1e-08]
[1748395391234,45.1517006,2647.9,2647.8,1e-08]
[1748395391434,45.1517001,2647.9,2647.8,1e-08]
[1748395392131,45.15172062,2647.9,2647.8,1e-08]
[1748395392434,45.15176224,2647.9,2647.8,1e-08]
[1748395392635,45.15176143,2647.9,2647.8,1e-08]
[1748395392836,45.15176162,2647.9,2647.8,1e-08]
[1748395393336,45.15171971,2647.9,2647.8,1e-08]
[1748395393536,45.15178113,2647.9,2647.8,1e-08]
[1748395393832,44.9438237,2647.9,2647.8,1e-08]
[1748395394037,45.15178382,2647.9,2647.8,1e-08]
[1748395394339,45.1522304,2647.9,2647.8,1e-08]
[1748395395239,45.15222221,2647.9,2647.8,1e-08]
[1748395395436,45.15222256,2647.9,2647.8,1e-08]
[1748395396230,2.32973914,2647.9,2647.8,1e-08]
[1748395396430,2.12177028,2647.9,2647.8,1e-08]
[1748395396635,2.32977679,2647.9,2647.8,1e-08]
[1748395397635,2.32977679,2647.9,2647.8,0.68090001]
[1748395397937,2.32977679,2647.9,2647.8,1e-08]
[1748395398240,2.32983899,2647.9,2647.8,1e-08]
[1748395398537,2.12279108,2647.9,2647.8,1.23450001]
[1748395398739,2.3309297,2647.9,2647.8,1.23450001]
[1748395398927,3.47679108,2647.9,2647.8,1.23450001]
[1748395399134,3.68490802,2647.9,2647.8,1.23450001]
[1748395399430,3.68496056,2647.9,2647.8,1.23450001]
[1748395400538,3.47679108,2647.9,2647.8,1.23450001]
[1748395400739,3.68506996,2647.9,2647.8,1.23450001]
[1748395401035,3.68507641,2647.9,2647.8,1.23450001]
[1748395401533,3.68514853,2647.9,2647.8,1.23450001]
[1748395401934,2.33114853,2647.9,2647.8,1.23450001]
[1748395402435,2.12279108,2647.9,2647.8,1.23450001]
[1748395402631,2.125768,2647.9,2647.8,1.23450001]
[1748395402834,2.33438042,2647.9,2647.8,1.23450001]
[1748395403034,2.33438499,2647.9,2647.8,1.98946001]
[1748395403231,1.5004315,2647.9,2647.8,27.59626001]
[1748395403531,1.5004274,2647.9,2647.8,27.59626001]
[1748395404136,1.50032994,2647.9,2647.8,27.59626001]
[1748395404346,0.75491,2648.0,2647.9,0.75493]
[1748395404530,0.96335814,2648.0,2647.9,6.45783]
[1748395404733,0.96335814,2648.0,2647.9,7.10393]
[1748395405132,0.9633547,2648.0,2647.9,7.10393]
[1748395405335,0.96335557,2648.0,2647.9,7.10393]
[1748395406346,0.75491,2648.0,2647.9,7.10393]
[1748395406645,0.96321657,2648.0,2647.9,7.10393]
[1748395406841,0.75491,2648.0,2647.9,7.10393]
[1748395407141,0.96324975,2648.0,2647.9,7.10393]
[1748395407537,0.96324975,2648.0,2647.9,2.587]
[1748395407738,0.75491,2648.0,2647.9,1.9192]
[1748395408038,0.96320184,2648.0,2647.9,1.9192]
[1748395408439,0.96316983,2648.0,2647.9,2.5504]
[1748395409331,0.75491,2648.0,2647.9,2.5504]
[1748395409541,0.96315273,2648.0,2647.9,2.5504]
[1748395409740,0.75491,2648.0,2647.9,2.5504]
[1748395409939,0.96315186,2648.0,2647.9,2.5504]
[1748395410345,0.96314081,2648.0,2647.9,2.5504]
[1748395410948,0.96314081,2648.0,2647.9,3.30533]
[1748395411139,0.96315676,2648.0,2647.9,2.5504]
[1748395411345,0.96316671,2648.0,2647.9,2.5504]
[1748395411945,0.96316815,2648.0,2647.9,2.5504]
[1748395412335,0.75491,2648.0,2647.9,2.5504]
[1748395412544,0.96316483,2648.0,2647.9,2.5504]
[1748395412743,0.96316317,2648.0,2647.9,2.5504]
[1748395413346,0.75491,2648.0,2647.9,2.5504]
[1748395413544,0.96316674,2648.0,2647.9,2.5504]
[1748395414047,0.96316529,2648.0,2647.9,2.5504]
[1748395414640,0.75491,2648.0,2647.9,2.5504]
[1748395414846,0.96317391,2648.0,2647.9,2.5504]
[1748395415345,2.33148086,2648.0,2647.9,2.5504]
[1748395415647,0.96317541,2648.0,2647.9,2.5504]
[1748395415841,2.33145468,2648.0,2647.9,2.5504]
[1748395416236,2.33144101,2648.0,2647.9,2.5504]
[1748395416440,2.33144532,2648.0,2647.9,2.5504]
[1748395416641,2.12318927,2648.0,2647.9,2.5504]
[1748395416951,2.33145343,2648.0,2647.9,2.5504]
[1748395417250,2.3314522,2648.0,2647.9,2.5504]
[1748395417442,2.12318927,2648.0,2647.9,2.5504]
[1748395418146,2.3314392,2648.0,2647.9,2.5504]
[1748395418350,2.33143913,2648.0,2647.9,2.5504]
[1748395418749,2.33145163,2648.0,2647.9,2.5504]
[1748395418949,2.33145047,2648.0,2647.9,2.5504]
[1748395419250,2.33145047,2648.0,2647.9,2.62379423]
[1748395419653,2.33146473,2648.0,2647.9,2.62379423]
[1748395420156,2.33152959,2648.0,2647.9,2.5504]
[1748395420451,2.331537,2648.0,2647.9,2.5504]
[1748395421154,2.331537,2648.0,2647.9,1.9192]
[1748395421652,2.33158041,2648.0,2647.9,1.9192]
[1748395422150,2.33159314,2648.0,2647.9,1.9192]
[1748395422351,2.33160605,2648.0,2647.9,1.9192]
[1748395422646,2.33162376,2648.0,2647.9,1.9192]
[1748395422852,2.3316237,2648.0,2647.9,1.9192]
[1748395423046,2.12325413,2648.0,2647.9,1.9192]
[1748395423252,2.33162845,2648.0,2647.9,1.99259423]
[1748395423457,2.33165457,2648.0,2647.9,5.20039423]
[1748395423758,2.33166493,2648.0,2647.9,5.20039423]
[1748395424046,2.33166437,2648.0,2647.9,5.20039423]
[1748395424246,2.33166437,2648.0,2647.9,5.127]
[1748395424446,2.33169498,2648.0,2647.9,5.127]
[1748395424850,2.33169498,2648.0,2647.9,8.2079]
[1748395425355,2.33171715,2648.0,2647.9,8.2079]
[1748395425547,2.33175223,2648.0,2647.9,8.2079]
[1748395425747,2.12325413,2648.0,2647.9,8.2079]
[1748395425951,2.33175981,2648.0,2647.9,8.2079]
[1748395426354,2.12325413,2648.0,2647.9,8.2079]
[1748395426552,2.33176628,2648.0,2647.9,8.2079]
[1748395428257,2.33174846,2648.0,2647.9,8.2079]
[1748395428552,2.33177037,2648.0,2647.9,8.2079]
[1748395428856,2.33325096,2648.0,2647.9,6.9348]
[1748395429052,0.75493,2647.9,2647.8,1e-08]
[1748395429250,7.91575541,2647.9,2647.8,1e-08]
[1748395429452,12.91575541,2647.9,2647.8,1e-08]
[1748395429651,12.91561802,2647.9,2647.8,1e-08]
[1748395429852,53.71561802,2647.9,2647.8,1e-08]
[1748395430051,71.07661802,2647.9,2647.8,1e-08]
[1748395431157,71.07537112,2647.9,2647.8,1e-08]
[1748395431358,71.07526069,2647.9,2647.8,1e-08]
[1748395431759,70.86700782,2647.9,2647.8,1e-08]
[1748395432853,70.86584436,2647.9,2647.8,1e-08]
[1748395437164,70.87728535,2647.9,2647.8,1e-08]
[1748395440365,65.87728535,2647.9,2647.8,1e-08]
[1748395440960,65.87552146,2647.9,2647.8,1e-08]
[1748395443359,70.87552146,2647.9,2647.8,1e-08]
[1748395444465,0.75525,2646.8,2646.7,1.2604]
[1748395444867,0.75525,2646.8,2646.7,0.40287]
[1748395445167,0.7553,2646.6,2646.5,0.6638]
[1748395445669,2.13137219,2646.6,2646.5,0.6638]
[1748395446864,2.13063122,2646.6,2646.5,0.6638]
[1748395448173,2.13063122,2646.6,2646.5,1.9989]
[1748395450369,0.7553,2646.6,2646.5,1.9989]
[1748395456482,2.1319703,2646.6,2646.5,1.9989]
[1748395458789,5.1533003,2646.6,2645.6,6.9148]
[1748395459084,0.75556,2645.7,2645.6,3.707]
[1748395459284,0.75559,2645.6,2645.5,0.6766]
[1748395460387,5.34148199,2645.6,2645.5,0.6766]
[1748395460684,0.75562,2645.5,2645.4,1.326]
[1748395460883,3.36961199,2645.5,2645.4,1.326]
[1748395461277,44.17010497,2645.5,2645.4,1.326]
[1748395464385,0.75565,2645.4,2645.3,0.00566861]
[1748395464692,3.38423497,2645.4,2645.3,0.00566861]
[1748395465087,44.18423497,2645.4,2645.3,0.00566861]
[1748395465690,44.18270939,2645.4,2645.3,0.00566861]
[1748395470183,44.18175678,2645.4,2645.3,0.00566861]
[1748395474494,42.80565,2645.4,2645.3,0.00566861]
[1748395474796,44.18186971,2645.4,2645.3,0.00566861]
[1748395474989,44.18186971,2645.4,2645.3,0.07906284]
[1748395478997,44.18207941,2645.4,2645.3,0.07906284]
[1748395483301,44.18386277,2645.4,2645.3,0.07906284]
[1748395485899,2.13386277,2645.4,2645.3,5.83474284]
[1748395486303,2.13386277,2645.4,2645.3,7.84034284]
[1748395487407,2.13386277,2645.4,2645.3,2.08466284]
[1748395489210,0.75565,2645.4,2645.3,2.08466284]
[1748395489602,2.14003472,2645.4,2645.3,2.08466284]
[1748395490410,2.14003472,2645.4,2645.3,7.84033284]
[1748395490806,2.14003472,2645.4,2645.3,7.08466284]
[1748395491207,0.75565,2645.4,2645.3,7.08466284]
[1748395491412,2.1401016,2645.4,2645.3,7.08466284]
[1748395491708,2.1401016,2645.4,2645.3,7.84033284]
[1748395492413,2.1401016,2645.4,2645.3,2.84033284]
[1748395492608,2.1401016,2645.4,2645.3,7.84033284]
[1748395497415,2.1401016,2645.4,2645.3,2.84033284]
[1748395497816,2.14034994,2645.4,2645.3,2.84033284]
[1748395498217,2.14034994,2645.4,2645.3,2.19453284]
[1748395498411,0.75596,2644.3,2644.2,1.344]
[1748395498612,0.75607,2643.9,2643.8,0.6508]
[1748395498813,0.75613,2643.7,2643.6,1.2416]
[1748395499014,2.14082994,2643.7,2643.6,1.2416]
[1748395501517,0.75613,2643.7,2643.6,1.2416]
[1748395504427,2.06202,2643.8,2643.6,1.31499423]
[1748395504717,40.80566861,2643.9,2643.8,0.7561]
[1748395504922,40.80566861,2643.9,2643.8,3.9639]
[1748395505315,41.56173861,2643.9,2643.8,3.9639]
[1748395505723,0.76173861,2643.9,2643.8,3.9639]
[1748395506320,0.00566861,2643.9,2643.8,3.9639]
[1748395506830,0.76173861,2643.9,2643.8,3.2078]
[1748395507132,0.76173861,2643.9,2643.8,4.5199]
[1748395507327,0.76173861,2643.9,2643.8,3.2078]
[1748395507530,0.75616,2643.6,2643.5,2.38695423]
[1748395507735,0.75619,2643.5,2643.4,0.00566861]
[1748395508027,44.10939,2643.5,2643.4,0.00566861]
[1748395509732,0.75636,2642.9,2642.8,3.2078]
[1748395510034,1.89093,2642.9,2642.5,3.2078]
[1748395510223,1.2442,2642.8,2642.5,3.96425]
[1748395510526,40.8,2642.7,2642.6,0.75645]
[1748395510726,40.8,2642.7,2642.6,2.09235]
[1748395510935,1.40288,2643.2,2642.7,1.89105]
[1748395511130,0.6466,2643.2,2643.1,0.7563]
[1748395511433,0.7563,2643.1,2643.0,0.75631]
[1748395511832,1.3503,2643.1,2642.8,4.5437]
[1748395512030,1.3503,2643.1,2643.0,0.75633]
[1748395512628,2.10662,2643.1,2643.0,0.75633]
[1748395512834,0.75636,2642.9,2642.8,3.2078]
[1748395513035,0.75639,2642.8,2642.7,0.75642]
[1748395513238,0.75639,2642.8,2642.7,3.2078]
[1748395514329,0.75639,2642.8,2642.7,3.96422]
[1748395514532,0.75639,2642.8,2642.7,3.2078]
[1748395515641,3.24109,2643.1,2642.7,3.96422]
[1748395515833,0.75639,2642.8,2642.7,3.96422]
[1748395516029,1.3503,2643.1,2642.7,3.2078]
[1748395516231,0.75637,2642.9,2642.7,3.9642]
[1748395516539,1.3664,2642.8,2642.7,3.9642]
[1748395516736,2.12279,2642.8,2642.7,3.9642]
[1748395518536,1.3664,2642.8,2642.7,3.9642]
[1748395518742,0.7563,2643.1,2643.0,0.75633]
[1748395518941,0.75634,2643.0,2642.9,0.75634]
[1748395519541,0.75632,2643.1,2643.0,0.75632]
[1748395520237,2.05502,2643.1,2643.0,0.75632]
[1748395520637,0.75634,2643.0,2642.9,0.75634]
[1748395521935,0.75634,2643.0,1353.4,0.005]
[1748395521936,30.81125276,2643.0,2641.2,3.784]
[1748395522140,0.75673,2641.6,2641.5,1.2538]
[1748395522447,40.8,2641.6,2641.5,1.2538]
[1748395522643,42.0987,2641.6,2641.4,0.75678]
[1748395522840,42.85544,2641.6,2641.4,0.75678]
[1748395523041,42.85544,2641.6,2641.3,1.9991]
[1748395523042,40.8,2641.6,2641.5,0.75676]
[1748395523543,40.8,2641.6,2641.5,5.75676]
[1748395523745,3.2078,2641.7,2641.6,0.75673]
[1748395523946,3.2078,2641.7,2641.6,23.46993]
[1748395524142,3.2078,2642.0,2641.6,27.7132]
[1748395524341,3.2078,2642.0,2641.9,0.75665]
[1748395524744,3.96442,2642.0,2641.9,0.75665]
[1748395524945,3.2078,2642.0,2641.9,0.75665]
[1748395525552,3.96442,2642.0,2641.9,0.75665]
[1748395525856,3.2078,2642.0,2641.9,5.75665]
[1748395527052,40.8,2642.2,2642.1,0.75659]
[1748395527356,3.2078,2642.3,2642.2,0.75656]
[1748395527651,3.96433,2642.3,2642.2,2.01506]
[1748395527842,3.2078,2642.3,2642.2,2.01506]
[1748395528248,4.58459862,2642.3,2642.2,2.01506]
[1748395530145,3.2078,2642.3,2642.2,7.01506]
[1748395530557,0.00566861,2642.4,2642.3,0.75653]
[1748395530754,0.00566861,2642.4,2642.3,2.01613]
[1748395530958,0.00566861,2642.4,2642.3,10.22393]
[1748395534461,0.00566861,2642.4,2642.3,7.01613]
[1748395534757,0.00566861,2642.4,2642.3,24.58213]
[1748395534955,0.00566861,2642.4,2642.3,24.65552423]
[1748395535548,0.00566861,2642.4,2642.3,7.08952423]
[1748395535755,0.00566861,2642.4,2642.3,28.43452423]
[1748395536158,0.00566861,2642.4,2642.3,7.08952423]
[1748395536355,0.00566861,2642.4,2642.3,28.43152423]
[1748395537460,0.00566861,2642.4,2642.3,31.63932423]
[1748395540959,0.00566861,2642.4,2642.3,14.08132423]
[1748395541167,0.00566861,2642.4,2642.3,23.41052423]
[1748395542968,8.61e-06,2642.4,2642.3,26.61832423]
[1748395543171,8.61e-06,2642.4,2642.3,31.61832423]
[1748395545770,8.61e-06,2642.4,2642.3,14.08132423]
[1748395545970,8.61e-06,2642.4,2642.3,31.60032423]
[1748395549668,1.3642,2643.2,2643.1,0.7563]
[1748395549867,1.3642,2643.2,2643.1,22.0773]
[1748395550562,2.74494893,2643.2,2643.1,22.0773]
[1748395551068,0.7563,2643.1,2643.0,3.813]
[1748395551264,6.69824893,2643.1,2643.0,4.56932]
[1748395551568,4.5612,2643.1,2643.0,4.56932]
[1748395551765,5.94488817,2643.1,2643.0,4.56932]
[1748395551972,5.93922885,2643.1,2643.0,4.56932]
[1748395552569,6.69552885,2643.1,2643.0,4.56932]
[1748395553470,5.93922885,2643.1,2643.0,4.56932]
[1748395554375,6.69552885,2643.1,2643.0,4.56932]
[1748395556379,5.93922885,2643.1,2643.0,4.56932]
[1748395556572,2.73142885,2643.1,2643.0,4.56932]
[1748395556879,1.34774068,2643.1,2643.0,4.56932]
[1748395559080,0.6316,2643.3,2643.2,0.75627]
[1748395559280,1.9521,2643.3,2643.2,0.75627]
[1748395561886,0.6316,2643.3,2643.2,0.75627]
[1748395563689,0.6316,2643.3,2643.2,22.03627]
[1748395564093,0.6316,2643.3,2643.2,4.56827]
[1748395564391,0.6316,2643.3,2643.2,22.03527]
[1748395564994,3.8394,2643.3,2643.2,22.03527]
[1748395565195,3.8394,2643.3,2643.2,22.03227]
[1748395565196,2.62565,2643.3,2643.2,22.03227]
[1748395565386,5.83345,2643.3,2643.2,22.10566423]
[1748395566596,5.0772,2643.3,2643.2,22.10566423]
[1748395567095,5.83345,2643.3,2643.2,22.10566423]
[1748395567299,5.83345,2643.3,2643.2,22.10067423]
[1748395568395,5.83345,2643.3,2643.2,0.82967423]
[1748395568595,5.83345,2643.3,2643.2,22.10267423]
[1748395570292,0.00566861,2643.4,2643.3,0.75625]
[1748395570499,0.75616,2643.7,2643.6,0.75612]
[1748395570790,0.75616,2643.7,2643.6,4.56812]
[1748395570996,3.34231,2643.9,2643.8,0.7561]
[1748395571499,2.5862,2643.9,2643.8,0.7561]
[1748395572299,2.5862,2643.9,2643.8,18.2221]
[1748395572795,3.34227,2643.9,2643.8,18.2221]
[1748395572996,0.7561,2643.8,2643.7,3.2078]
[1748395573199,2.0896,2643.8,2643.7,22.04213]
[1748395573393,2.0896,2643.8,2643.7,4.56813]
[1748395574202,2.0896,2643.8,2643.7,0.75613]
[1748395574500,2.0896,2643.8,2643.7,4.56813]
[1748395575101,2.0896,2643.8,2643.7,3.812]
[1748395575506,1.3335,2643.8,2643.7,4.56813]
[1748395575698,2.0896,2643.8,2643.7,4.56813]
[1748395576003,0.75613,2643.7,2643.6,0.00566861]
[1748395576304,2.06873,2643.7,2643.6,22.06182861]
[1748395576493,2.06873,2643.7,2643.6,21.30566861]
[1748395577105,2.06873,2643.7,2643.6,22.06182861]
[1748395577906,1.3126,2643.7,2643.6,22.06182861]
[1748395578207,2.06873,2643.7,2643.6,22.06182861]
[1748395580107,1.3126,2643.7,2643.6,22.06182861]
[1748395580310,0.75613,2643.7,2643.6,22.06180861]
[1748395580713,0.75613,2643.7,2643.6,0.07906284]
[1748395581007,0.75613,2643.7,2643.6,21.35306284]
[1748395581710,0.75613,2643.7,2643.6,22.10922284]
[1748395584915,0.75613,2643.7,2643.6,0.07906284]
[1748395585107,0.75613,2643.7,2643.6,21.33806284]
[1748395585413,0.75613,2643.7,2643.6,3.87806284]
[1748395585814,0.75636,2642.9,2642.8,0.75638]
[1748395586011,0.75639,2642.9,2642.7,62.6348]
[1748395586211,0.75639,2642.9,2642.8,1.34]
[1748395586714,2.04779,2642.9,2642.8,1.34]
[1748395586915,3.2078,2643.6,2642.8,6.34]
[1748395587117,0.75627,2643.3,2643.2,0.75624]
[1748395587308,0.75627,2643.3,2643.2,5.80964]
[1748395589111,0.75623,2643.4,2643.3,0.75622]
[1748395589315,0.75623,2643.4,2643.3,19.52262]
[1748395594823,0.75623,2643.4,2643.3,19.59601423]
[1748395595126,0.75623,2643.4,2643.3,2.08404423]
[1748395595314,0.75623,2643.4,2643.3,19.57904423]
[1748395595517,2.08293,2643.4,2643.3,19.57904423]
[1748395596322,2.08293,2643.4,2643.3,2.08404423]